bitfinex-derivatives/quotes_SOLF0:USTF0_20260312
["timestamp","ask_amount","ask_price","bid_price","bid_amount"]
[1773342890157,3.4773445,85.85,85.801,3.93101726]
[1773342890955,3.4773445,85.85,85.806,4.05834582]
[1773342891155,3.72163701,85.857,85.806,4.05834582]
[1773342891556,3.72163701,85.857,85.812,4.05834582]
[1773342891757,3.72163701,85.855,85.812,4.05834582]
[1773342892052,3.4773445,85.85,85.812,4.05834582]
[1773342892260,3.72163701,85.849,85.797,4.05834582]
[1773342893556,3.4773445,85.84,85.797,4.05834582]
[1773342894360,3.72163701,85.849,85.797,4.05834582]
[1773342895057,10.483,85.848,85.801,4.05834582]
[1773342895258,3.4773445,85.84,85.801,4.05834582]
[1773342895454,3.72163701,85.839,85.781,4.05834582]
[1773342895659,3.4773445,85.83,85.781,4.05834582]
[1773342895958,3.72163701,85.839,85.781,4.05834582]
[1773342896855,10.484,85.836,85.786,10.49]
[1773342897053,10.484,85.836,85.787,4.05834582]
[1773342898562,10.484,85.836,85.79,4.05834582]
[1773342898962,10.484,85.836,85.791,4.05834582]
[1773342899865,10.484,85.836,85.792,4.05834582]
[1773342900564,10.483,85.844,85.794,4.05834582]
[1773342900764,10.483,85.844,85.71,163.332]
[1773342900765,10.483,85.844,85.801,4.05834582]
[1773342902565,10.484,85.836,85.801,4.05834582]
[1773342902866,3.72163701,85.849,85.801,4.05834582]
[1773342903065,3.47447263,85.86,85.811,4.05834582]
[1773342903269,3.47447263,85.87,85.821,4.05834582]
[1773342903467,3.72163701,85.875,85.821,4.05834582]
[1773342903656,3.72163701,85.875,85.831,4.05834582]
[1773342904057,10.48,85.873,85.831,4.05834582]
[1773342905163,3.72163701,85.875,85.831,4.05834582]
[1773342905860,3.72163701,85.875,85.831,14.54334582]
[1773342906070,3.72163701,85.875,85.832,4.05834582]
[1773342906564,10.48,85.867,85.832,4.05834582]
[1773342906769,3.72163701,85.849,85.808,36.68]
[1773342907267,3.47447263,85.86,85.808,36.68]
[1773342907664,3.47447263,85.86,85.81,3.47447263]
[1773342907872,10.481,85.859,85.814,10.487]
[1773342908066,3.72163701,85.863,85.82,3.47447263]
[1773342908670,3.47447263,85.87,85.82,3.47447263]
[1773342908671,3.47447263,85.87,85.821,4.05834582]
[1773342908974,3.47447263,85.87,85.827,10.485]
[1773342909466,7.19610964,85.87,85.827,10.485]
[1773342910267,13.95347263,85.88,85.834,4.05834582]
[1773342910472,3.72163701,85.886,85.808,36.68]
[1773342910473,3.72163701,85.886,85.841,4.05834582]
[1773342911382,3.72163701,85.886,85.843,4.05834582]
[1773342911574,3.72163701,85.899,85.851,4.05834582]
[1773342912176,3.72163701,85.899,85.856,10.482]
[1773342912873,3.72163701,85.93,85.87,3.47447263]
[1773342913177,3.72163701,85.93,85.827,20.971]
[1773342913178,7.19610964,85.93,85.881,4.05834582]
[1773342913670,3.72163701,85.929,85.881,4.05834582]
[1773342913875,10.473,85.926,85.881,4.05834582]
[1773342914279,3.47447263,85.92,85.881,4.05834582]
[1773342914472,10.474,85.919,85.881,4.05834582]
[1773342914974,3.72163701,85.929,85.89,3.47447263]
[1773342915371,3.72163701,85.929,85.881,4.05834582]
[1773342915578,3.47447263,85.92,85.881,4.05834582]
[1773342915974,3.72163701,85.929,85.881,4.05834582]
[1773342916277,3.47447263,85.94,85.891,4.05834582]
[1773342916680,10.471,85.941,85.892,4.05834582]
[1773342917072,3.72163701,85.919,85.87,4.05834582]
[1773342917277,3.47447263,85.91,85.87,4.05834582]
[1773342917472,3.47447263,85.9,85.856,4.05834582]
[1773342918277,3.72163701,85.899,85.856,4.05834582]
[1773342918476,3.47447263,85.88,85.836,4.05834582]
[1773342918775,20.947,85.927,85.808,36.66]
[1773342918776,36.68,85.929,85.841,4.05834582]
[1773342918977,3.47447263,85.9,85.851,4.05834582]
[1773342919179,3.47447263,85.9,85.808,36.66]
[1773342919180,3.72163701,85.909,85.861,4.05834582]
[1773342919580,3.47447263,85.9,85.861,4.05834582]
[1773342919781,3.47447263,85.9,85.864,10.481]
[1773342919976,3.72163701,85.909,85.865,4.05834582]
[1773342920180,3.72163701,85.923,85.871,4.05834582]
[1773342920780,10.474,85.92,85.874,10.479]
[1773342920975,3.86214534,85.909,85.858,4.00737066]
[1773342921774,3.86214534,85.909,85.869,4.00737066]
[1773342922882,3.86214534,85.908,85.853,4.00737066]
[1773342923082,3.86214534,85.899,85.853,4.00737066]
[1773342923688,36.66,85.947,85.86,3.47447263]
[1773342923984,3.86214534,85.909,85.86,3.47447263]
[1773342924181,3.86214534,85.907,85.853,4.00737066]
[1773342924485,3.86214534,85.899,85.841,4.00737066]
[1773342924684,3.86214534,85.899,85.855,4.00737066]
[1773342925586,7.33661797,85.89,85.848,10.483]
[1773342925986,14.27972897,85.976,85.848,10.483]
[1773342925987,7.33661797,85.9,85.85,3.47447263]
[1773342926185,7.33661797,85.9,85.851,4.00737066]
[1773342926480,3.47447263,85.91,85.861,4.00737066]
[1773342926681,7.33661797,85.91,85.861,4.00737066]
[1773342926884,3.86214534,85.945,85.871,4.00737066]
[1773342927081,3.47447263,85.92,85.871,4.00737066]
[1773342927280,3.86214534,85.942,85.89,7.48184329]
[1773342927587,3.86214534,85.942,85.9,3.47447263]
[1773342927780,36.66,85.976,85.911,4.00737066]
[1773342927781,3.86214534,85.957,85.911,4.00737066]
[1773342928180,10.473,85.927,85.881,4.00737066]
[1773342928381,3.86214534,85.919,85.873,10.479]
[1773342928579,3.47447263,85.91,85.866,4.00737066]
[1773342928982,3.86214534,85.908,85.85,44.14184329]
[1773342929188,3.86214534,85.908,85.851,4.00737066]
[1773342929189,3.47447263,85.9,85.851,4.00737066]
[1773342929387,3.86214534,85.908,85.86,3.47447263]
[1773342929982,3.47447263,85.9,85.86,4.00737066]
[1773342930386,3.47447263,85.9,85.85,3.47447263]
[1773342931278,3.47447263,85.9,85.846,4.00737066]
[1773342931480,3.47447263,85.9,85.851,4.00737066]
[1773342931988,3.47447263,85.9,85.859,10.481]
[1773342936889,3.47447263,85.89,85.852,10.482]
[1773342937194,3.86214534,85.899,85.852,10.482]
[1773342937392,3.47447263,85.92,85.871,4.00737066]
[1773342937594,3.86214534,85.909,85.86,3.47447263]
[1773342937989,3.86214534,85.899,85.843,4.00737066]
[1773342938190,3.86214534,85.899,85.851,4.00737066]
[1773342939591,3.86214534,85.899,85.857,10.481]
[1773342940394,3.86214534,85.899,85.857,14.48837066]
[1773342944401,3.90819231,85.889,85.843,3.67383243]
[1773342944701,3.90819231,85.889,85.828,36.66]
[1773342944702,7.38266494,85.88,85.829,3.67383243]
[1773342945701,3.47447263,85.88,85.839,3.67383243]
[1773342945896,3.90819231,85.894,85.841,3.67383243]
[1773342946601,3.90819231,85.894,85.858,10.481]
[1773342946998,3.90819231,85.894,85.841,3.67383243]
[1773342947299,3.90819231,85.894,85.85,10.482]
[1773342947602,3.47447263,85.89,85.85,10.482]
[1773342948904,3.47447263,85.86,85.825,3.67383243]
[1773342949904,3.47447263,85.86,85.827,10.485]
[1773342950205,3.90819231,85.869,85.827,10.485]
[1773342950405,3.82367388,85.865,85.817,10.486]
[1773342950601,3.47447263,85.86,85.817,10.486]
[1773342950796,3.47447263,85.86,85.789,21.63733036]
[1773342950797,3.82367388,85.836,85.784,3.76466296]
[1773342951002,3.47447263,85.84,85.791,3.76466296]
[1773342952004,3.47447263,85.84,85.796,14.25366296]
[1773342952205,3.47447263,85.84,85.797,3.76466296]
[1773342952405,3.47447263,85.85,85.797,3.76466296]
[1773342952606,3.47447263,85.84,85.8,10.488]
[1773342952805,3.47447263,85.85,85.801,3.76466296]
[1773342954010,3.47447263,85.85,85.805,10.488]
[1773342955105,7.29814651,85.84,85.797,10.489]
[1773342955504,3.82367388,85.86,85.811,3.76466296]
[1773342955707,3.82367388,85.87,85.821,3.76466296]
[1773342955903,3.82367388,85.886,85.831,3.76466296]
[1773342956307,3.47447263,85.88,85.831,3.76466296]
[1773342956509,3.47447263,85.87,85.831,14.24966296]
[1773342956809,3.47447263,85.87,85.831,3.76466296]
[1773342957007,3.47447263,85.86,85.811,3.76466296]
[1773342957405,3.47447263,85.86,85.823,10.486]
[1773342957603,3.82367388,85.869,85.824,3.76466296]
[1773342958307,3.82367388,85.869,85.825,10.485]
[1773342959809,10.48,85.868,85.824,3.76466296]
[1773342960712,3.47447263,85.88,85.831,3.76466296]
[1773342960916,7.29814651,85.9,85.841,3.76466296]
[1773342961418,10.477,85.896,85.844,10.483]
[1773342961616,14.30067388,85.896,85.844,10.483]
[1773342962617,3.47447263,85.89,85.844,10.483]
[1773342962821,3.47447263,85.89,85.849,10.482]
[1773342963618,10.476,85.906,85.857,10.481]
[1773342964817,10.476,85.906,85.858,3.76466296]
[1773342965618,10.476,85.901,85.858,3.76466296]
[1773342966420,3.82367388,85.922,85.86,3.76466296]
[1773342966919,10.472,85.938,85.89,10.477]
[1773342967314,10.472,85.938,85.85,30.25979602]
[1773342967315,3.82367388,85.959,85.891,3.76466296]
[1773342967513,3.82367388,85.959,85.896,3.76466296]
[1773342967713,3.82367388,85.959,85.871,3.76466296]
[1773342968914,3.82367388,85.954,85.898,3.76466296]
[1773342969722,3.82367388,85.95,85.899,10.476]
[1773342970321,3.82367388,85.939,85.888,10.478]
[1773342971217,3.82367388,85.939,85.889,3.76466296]
[1773342972618,3.82367388,85.959,85.889,3.76466296]
[1773342972914,3.82367388,85.959,85.912,10.475]
[1773342973522,3.82367388,85.959,85.912,14.23966296]
[1773342974114,10.469,85.958,85.912,14.23966296]
[1773342974514,14.29267388,85.958,85.912,14.23966296]
[1773342974916,3.82367388,85.953,85.898,3.76466296]
[1773342975120,3.82367388,85.953,85.883,3.76466296]
[1773342975821,3.82367388,85.941,85.883,3.76466296]
[1773342976120,3.82367388,85.939,85.883,3.76466296]
[1773342976528,9.29479602,85.94,85.868,3.76466296]
[1773342976529,3.82367388,85.929,85.868,3.76466296]
[1773342977223,3.82367388,85.92,85.866,10.48]
[1773342978124,9.29479602,85.94,85.866,10.48]
[1773342978125,3.82367388,85.91,85.866,10.48]
[1773342978826,3.82367388,85.91,85.853,3.76466296]
[1773342978827,3.82367388,85.907,85.853,3.76466296]
[1773342979022,3.82367388,85.899,85.811,3.76466296]
[1773342979622,3.82367388,85.899,85.838,3.76466296]
[1773342980431,3.82367388,85.899,85.846,14.26477275]
[1773342980827,3.82367388,85.899,85.846,3.78177275]
[1773342981830,3.96394452,85.896,85.846,3.78177275]
[1773342982941,3.96394452,85.894,85.836,10.484]
[1773342983438,3.96394452,85.894,85.836,14.26577275]
[1773342984839,10.478,85.885,85.836,14.26577275]
[1773342987940,3.96394452,85.892,85.844,3.78177275]
[1773342988538,10.478,85.884,85.836,10.484]
[1773342988739,10.478,85.884,85.837,3.78177275]
[1773342989329,3.96394452,85.892,85.848,3.78177275]
[1773342990337,3.96394452,85.892,85.85,10.482]
[1773342991141,10.476,85.902,85.851,3.78177275]
[1773342991335,3.96394452,85.906,85.851,3.78177275]
[1773342991641,3.96394452,85.939,85.878,3.78177275]
[1773342992540,10.473,85.927,85.882,10.478]
[1773342994145,10.472,85.935,85.889,14.25977275]
[1773342994546,10.472,85.935,85.89,3.78177275]
[1773342994746,3.96394452,85.928,85.875,3.78177275]
[1773342995345,10.474,85.923,85.875,14.26077275]
[1773342995845,10.474,85.923,85.876,3.78177275]
[1773342996045,3.96394452,85.917,85.851,3.78177275]
[1773342996544,3.96394452,85.952,85.864,3.78177275]
[1773342996749,3.96394452,85.929,85.864,3.78177275]
[1773342997447,10.474,85.915,85.873,10.48]
[1773342997639,10.474,85.915,85.864,3.78177275]
[1773342997839,3.96394452,85.914,85.864,3.78177275]
[1773342998043,3.96394452,85.909,85.83,3.78177275]
[1773342998639,3.96394452,85.891,85.841,10.483]
[1773342999646,3.96394452,85.909,85.83,3.78177275]
[1773343000642,3.96394452,85.909,85.856,3.78177275]
[1773343001351,14.43894452,85.909,85.864,10.481]
[1773343003551,4.02899759,85.924,85.872,3.74520776]
[1773343004057,4.02899759,85.939,85.872,3.74520776]
[1773343004654,4.02899759,85.939,85.896,3.74520776]
[1773343004956,4.02899759,85.969,85.896,3.74520776]
[1773343005955,10.468,85.967,85.921,10.474]
[1773343006458,14.49699759,85.967,85.921,10.474]
[1773343006653,4.02899759,85.959,85.898,3.74520776]
[1773343006952,4.02899759,85.959,85.87,9.29479602]
[1773343006953,4.02899759,85.949,85.871,3.74520776]
[1773343007853,4.02899759,85.949,85.891,10.477]
[1773343008052,4.02899759,85.949,85.871,3.74520776]
[1773343008454,4.02899759,85.949,85.904,10.476]
[1773343008755,4.02899759,85.949,85.901,3.74520776]
[1773343010361,3.82466142,85.947,85.886,3.83869985]
[1773343011850,10.471,85.943,85.894,10.477]
[1773343012558,3.82466142,85.942,85.894,10.477]
[1773343012855,3.82466142,85.938,85.887,10.478]
[1773343013861,3.82466142,85.934,85.887,10.478]
[1773343014858,10.473,85.931,85.887,10.478]
[1773343015059,14.29766142,85.931,85.887,10.478]
[1773343015961,10.473,85.929,85.887,10.478]
[1773343016458,10.473,85.929,85.886,3.83869985]
[1773343018264,3.82466142,85.93,85.887,10.478]
[1773343019357,3.82466142,85.93,85.872,3.83869985]
[1773343020860,10.474,85.922,85.878,10.479]
[1773343023067,10.473,85.929,85.879,3.83869985]
[1773343023366,3.82466142,85.949,85.879,3.83869985]
[1773343024157,3.82466142,85.949,85.897,10.477]
[1773343025972,10.472,85.937,85.897,10.477]
[1773343026170,10.472,85.937,85.892,3.83869985]
[1773343026171,3.82466142,85.949,85.903,10.476]
[1773343026366,3.82466142,85.949,85.903,3.83869985]
[1773343027772,10.47,85.948,85.904,10.476]
[1773343028570,3.82466142,85.949,85.911,10.475]
[1773343029474,10.469,85.961,85.918,3.83869985]
[1773343029771,3.46537125,85.96,85.918,3.83869985]
[1773343029972,3.82466142,85.969,85.92,3.83869985]
[1773343030373,3.46537125,85.95,85.92,3.83869985]
[1773343031769,3.46537125,85.96,85.921,10.474]
[1773343032376,3.82466142,85.969,85.924,3.83869985]
[1773343033977,14.29266142,85.969,85.93,10.473]
[1773343034270,3.82466142,85.993,85.93,3.83869985]
[1773343034475,3.82466142,85.993,85.91,9.28136541]
[1773343034476,3.82466142,85.993,85.954,10.47]
[1773343035574,3.82466142,85.993,85.947,10.471]
[1773343035771,3.82466142,85.993,85.947,14.30969985]
[1773343036071,14.28966142,85.993,85.947,3.83869985]
[1773343036276,3.82466142,85.993,85.947,3.83869985]
[1773343036474,3.82466142,85.989,85.932,3.83869985]
[1773343037277,10.467,85.977,85.934,10.472]
[1773343037677,3.82466142,85.989,85.934,14.31069985]
[1773343038174,3.82466142,85.984,85.939,10.472]
[1773343038774,10.467,85.977,85.935,3.83869985]
[1773343039071,3.82466142,85.984,85.935,3.83869985]
[1773343039669,3.82466142,85.975,85.921,3.83869985]
[1773343040479,4.02919097,85.969,85.921,3.83869985]
[1773343040680,9.28136541,85.97,85.911,10.475]
[1773343040681,4.02919097,85.963,85.911,10.475]
[1773343041772,4.02919097,85.963,85.914,4.00321798]
[1773343042374,17.56046638,86.004,85.927,4.00321798]
[1773343042375,4.02919097,85.984,85.927,4.00321798]
[1773343042980,10.468,85.971,85.931,10.472]
[1773343044876,10.469,85.963,85.927,4.00321798]
[1773343045883,9.28136541,85.99,85.927,4.00321798]
[1773343045884,4.02919097,85.989,85.927,4.00321798]
[1773343046276,9.28136541,85.99,85.927,4.00321798]
[1773343046277,14.49519097,85.985,85.94,10.471]
[1773343046479,14.49519097,85.985,85.927,4.00321798]
[1773343046684,10.466,85.985,85.927,4.00321798]
[1773343046884,10.465,85.993,85.946,14.47421798]
[1773343047186,10.465,85.993,85.947,4.00321798]
[1773343047881,4.02919097,85.992,85.947,4.00321798]
[1773343048588,4.02919097,85.992,85.949,10.47]
[1773343049687,4.02919097,85.992,85.955,10.469]
[1773343050484,4.02919097,86.006,85.955,10.469]
[1773343050786,4.02919097,86.006,85.958,14.47221798]
[1773343051384,10.464,86.005,85.96,10.469]
[1773343051587,10.464,86.005,85.961,4.00321798]
[1773343051783,14.49319097,86.005,85.961,4.00321798]
[1773343051990,4.02919097,86.004,85.961,4.00321798]
[1773343052491,4.02919097,86.001,85.951,10.47]
[1773343053191,4.02919097,86.001,85.959,10.469]
[1773343053590,3.46266948,85.99,85.959,10.469]
[1773343053890,3.46266948,86.0,85.963,4.00321798]
[1773343054998,3.46266948,86.0,85.965,10.468]
[1773343055291,3.46266948,85.99,85.963,4.00321798]
[1773343055592,3.46266948,85.99,85.953,4.00321798]
[1773343055997,10.464,85.999,85.953,4.00321798]
[1773343056694,3.46266948,86.0,85.956,4.00321798]
[1773343057695,4.02919097,86.002,85.956,4.00321798]
[1773343057893,4.02919097,86.002,85.963,10.469]
[1773343059895,4.02919097,86.002,85.969,10.468]
[1773343060193,9.27430197,86.02,85.97,4.00321798]
[1773343060194,4.02919097,86.019,85.97,4.00321798]
[1773343060397,4.02919097,86.038,85.97,4.00321798]
[1773343060896,4.02919097,86.037,85.97,4.00321798]
[1773343061885,9.00248972,86.038,85.97,4.00321798]
[1773343061886,14.49019097,86.023,85.979,10.467]
[1773343062896,14.49019097,86.023,85.979,14.13608269]
[1773343063097,4.02919097,86.023,85.983,10.466]
[1773343063896,4.02919097,86.023,85.989,10.465]
[1773343064793,4.02919097,86.023,85.982,10.466]
[1773343065994,10.461,86.022,85.983,3.66908269]
[1773343066501,10.461,86.028,85.986,3.66908269]
[1773343066801,4.01622454,86.036,85.986,3.66908269]
[1773343066996,9.27430197,86.04,85.996,3.66908269]
[1773343067200,4.01622454,86.047,85.996,3.66908269]
[1773343067999,10.459,86.042,85.998,10.464]
[1773343068202,4.01622454,86.047,85.998,10.464]
[1773343069899,4.01622454,86.035,85.991,10.465]
[1773343070097,4.01622454,86.035,85.983,3.66908269]
[1773343070696,4.01622454,86.035,85.963,3.71983429]
[1773343071399,10.462,86.022,85.977,3.71983429]
[1773343073102,10.462,86.022,85.981,10.466]
[1773343075403,10.461,86.029,85.987,10.466]
[1773343075698,10.461,86.029,85.988,3.71983429]
[1773343076202,10.461,86.029,85.99,3.71983429]
[1773343078806,10.461,86.029,85.992,10.465]
[1773343079007,3.45970539,86.03,85.992,10.465]
[1773343079403,9.12818304,86.045,86.002,3.71983429]
[1773343079604,3.71995519,86.067,86.011,3.71983429]
[1773343079808,3.71995519,86.065,86.011,3.71983429]
[1773343080003,3.71995519,86.065,86.023,3.71983429]
[1773343080205,3.45970539,86.07,86.023,3.71983429]
[1773343080500,3.71995519,86.069,86.017,10.462]
[1773343080806,3.45970539,86.05,86.009,3.71983429]
[1773343081007,3.45970539,86.05,86.0,3.45970539]
[1773343081008,3.71995519,86.059,86.011,3.71983429]
[1773343081407,3.71995519,86.073,86.02,3.45970539]
[1773343081705,3.71995519,86.073,85.971,34.93]
[1773343081706,3.71995519,86.115,86.031,3.71983429]
[1773343082012,3.71995519,86.109,86.046,3.71983429]
[1773343082405,3.71995519,86.109,86.064,10.456]
[1773343082709,3.71995519,86.109,86.059,3.71983429]
[1773343083105,3.71995519,86.109,86.06,10.457]
[1773343083312,3.71995519,86.109,86.061,3.71983429]
[1773343084305,3.71995519,86.109,86.067,3.71983429]
[1773343084511,36.62,86.12,86.067,3.71983429]
[1773343084912,3.71995519,86.138,86.073,3.71983429]
[1773343085110,3.71995519,86.138,86.04,9.25682406]
[1773343085111,3.71995519,86.129,86.059,3.71983429]
[1773343085710,3.71995519,86.119,86.059,3.71983429]
[1773343085912,9.25248504,86.12,86.061,3.71983429]
[1773343087013,23.42244023,86.12,86.071,10.455]
[1773343087912,3.71995519,86.119,86.071,10.455]
[1773343088916,3.71995519,86.116,86.049,3.71983429]
[1773343090018,3.71995519,86.106,86.055,3.71983429]
[1773343090218,3.71995519,86.106,86.021,3.71983429]
[1773343090718,10.452,86.103,86.051,3.71983429]
[1773343092814,10.452,86.103,86.02,45.85248504]
[1773343092815,3.71995519,86.106,86.053,3.71983429]
[1773343093012,12.97244023,86.12,86.053,3.71983429]
[1773343093523,3.71995519,86.136,86.076,3.71983429]
[1773343094418,3.71995519,86.136,86.071,3.71983429]
[1773343094919,3.71995519,86.136,86.094,10.453]
[1773343095620,3.71995519,86.136,86.09,3.71983429]
[1773343096411,3.71995519,86.129,86.057,3.71983429]
[1773343097016,10.451,86.112,86.065,10.456]
[1773343097318,10.451,86.112,86.057,3.71983429]
[1773343097319,3.71995519,86.129,86.057,3.71983429]
[1773343097821,10.449,86.121,86.079,10.454]
[1773343098018,14.16895519,86.121,86.057,3.71983429]
[1773343098917,14.16895519,86.121,86.072,10.455]
[1773343099113,3.71995519,86.118,86.057,3.71983429]
[1773343100123,3.71995519,86.118,86.071,10.455]
[1773343101714,3.4533359,86.11,86.071,10.455]
[1773343102325,3.4533359,86.11,86.071,14.2735675]
[1773343104227,3.4533359,86.09,86.053,3.8185675]
[1773343104423,3.4533359,86.08,86.042,36.58]
[1773343104728,3.4533359,86.06,86.028,10.461]
[1773343106224,3.4533359,86.07,86.035,10.46]
[1773343106624,3.4533359,86.07,86.021,3.8185675]
[1773343106827,3.4533359,86.08,86.038,3.8185675]
[1773343108028,3.4533359,86.08,86.045,10.459]
[1773343108422,3.4533359,86.07,86.02,3.4533359]
[1773343108623,3.4533359,86.06,86.023,3.8185675]
[1773343109226,3.4533359,86.07,86.023,3.8185675]
[1773343109625,3.93732728,86.083,86.023,3.8185675]
[1773343109930,3.93732728,86.082,86.023,3.8185675]
[1773343110324,14.39132728,86.082,86.037,10.46]
[1773343110527,3.93732728,86.081,86.037,10.46]
[1773343111126,3.93732728,86.081,86.046,10.458]
[1773343111326,3.93732728,86.081,86.037,3.8185675]
[1773343111327,3.93732728,86.09,86.037,3.8185675]
[1773343111528,9.25797451,86.11,86.037,3.8185675]
[1773343111529,3.93732728,86.109,86.037,3.8185675]
[1773343111719,10.452,86.101,86.052,10.458]
[1773343111925,10.452,86.101,86.053,3.8185675]
[1773343112528,3.93732728,86.109,86.065,10.456]
[1773343112731,3.93732728,86.109,86.053,3.8185675]
[1773343113132,3.93732728,86.104,86.053,3.8185675]
[1773343114332,3.93732728,86.104,86.061,10.457]
[1773343114525,3.93732728,86.119,86.053,3.8185675]
[1773343114922,3.93732728,86.134,86.053,3.8185675]
[1773343115629,3.93732728,86.119,86.053,3.8185675]
[1773343116330,10.451,86.105,86.06,10.457]
[1773343116523,3.93732728,86.104,86.053,3.8185675]
[1773343116727,3.93732728,86.099,86.032,36.58]
[1773343116931,3.93732728,86.099,86.051,10.458]
[1773343117426,10.453,86.091,86.044,10.459]
[1773343117729,3.93732728,86.099,86.033,3.8185675]
[1773343119029,10.452,86.098,86.05,10.458]
[1773343119831,14.38932728,86.098,86.05,10.458]
[1773343120030,3.93732728,86.095,86.05,10.458]
[1773343120231,3.93732728,86.095,86.042,10.459]
[1773343120931,3.93732728,86.079,86.019,3.8185675]
[1773343121832,3.93732728,86.079,86.028,3.8185675]
[1773343122931,3.93732728,86.079,86.038,10.459]
[1773343123128,4.03219157,86.098,86.039,3.68344954]
[1773343124831,4.03219157,86.098,86.062,10.457]
[1773343125032,4.03219157,86.106,86.062,10.457]
[1773343125229,9.25797451,86.12,86.062,3.68344954]
[1773343125536,4.03219157,86.123,86.076,3.68344954]
[1773343126136,14.48119157,86.122,86.079,10.454]
[1773343126337,4.03219157,86.122,86.076,3.68344954]
[1773343126633,4.03219157,86.122,86.077,10.455]
[1773343127032,4.03219157,86.122,86.076,3.68344954]
[1773343128029,4.03219157,86.132,86.076,3.68344954]
[1773343128634,4.03219157,86.132,86.085,10.454]
[1773343129744,4.03219157,86.13,86.062,3.68344954]
[1773343130641,3.70456794,86.126,86.076,10.455]
[1773343131846,14.15356794,86.125,86.076,10.455]
[1773343132045,3.70456794,86.124,86.076,10.455]
[1773343133046,3.70456794,86.139,86.079,4.0574315]
[1773343134950,3.70456794,86.137,86.089,10.453]
[1773343135445,3.70456794,86.137,86.095,10.452]
[1773343135946,3.70456794,86.135,86.079,4.0574315]
[1773343136651,3.70456794,86.126,86.08,10.454]
[1773343137348,3.70456794,86.126,86.067,4.0574315]
[1773343137349,3.70456794,86.126,86.087,10.454]
[1773343138254,10.448,86.134,86.089,10.453]
[1773343138849,3.70456794,86.14,86.096,10.452]
[1773343139046,3.70456794,86.14,86.097,4.0574315]
[1773343139748,10.446,86.151,86.097,4.0574315]
[1773343140149,3.70456794,86.157,86.11,4.0574315]
[1773343140649,10.444,86.166,86.119,10.45]
[1773343140949,10.81544084,86.191,86.11,4.0574315]
[1773343140950,3.70456794,86.199,86.131,4.0574315]
[1773343141951,9.25797451,86.22,86.128,36.58]
[1773343141952,19.49633401,86.197,86.145,4.0574315]
[1773343142945,10.44,86.196,86.145,4.0574315]
[1773343143344,3.70456794,86.195,86.128,4.0574315]
[1773343143743,3.70456794,86.195,86.138,4.0574315]
[1773343144552,15.79176607,86.197,86.142,4.0574315]
[1773343144952,19.49633401,86.197,86.142,4.0574315]
[1773343145157,19.49633401,86.197,86.147,10.446]
[1773343145359,3.70456794,86.196,86.128,4.0574315]
[1773343145757,3.70456794,86.196,86.147,10.446]
[1773343145953,3.70456794,86.196,86.147,4.0574315]
[1773343146158,14.14556794,86.195,86.147,4.0574315]
[1773343146360,3.70456794,86.194,86.128,4.0574315]
[1773343146962,14.14556794,86.189,86.136,10.448]
[1773343147765,3.70456794,86.188,86.136,10.448]
[1773343147965,3.70456794,86.186,86.128,4.0574315]
[1773343148165,3.70456794,86.186,86.126,10.449]
[1773343148464,15.79176607,86.197,86.113,4.0574315]
[1773343148465,3.70456794,86.179,86.113,4.0574315]
[1773343148961,14.14756794,86.173,86.117,4.0574315]
[1773343149360,3.70456794,86.172,86.117,4.0574315]
[1773343149767,10.443,86.171,86.122,10.449]
[1773343149966,3.70456794,86.17,86.122,10.449]
[1773343150168,3.70456794,86.17,86.1,4.0574315]
[1773343150364,10.445,86.16,86.112,10.45]
[1773343151069,3.70456794,86.167,86.119,10.45]
[1773343151262,3.70456794,86.167,86.119,4.0574315]
[1773343151469,3.70456794,86.183,86.119,4.0574315]
[1773343152065,3.70456794,86.183,86.09,23.6668006]
[1773343152066,3.70456794,86.183,86.135,4.0574315]
[1773343153967,10.442,86.179,86.136,10.448]
[1773343157169,3.70456794,86.171,86.117,4.0574315]
[1773343158761,9.23401859,86.18,86.117,4.0574315]
[1773343158762,3.70456794,86.168,86.117,4.0574315]
[1773343159964,9.23401859,86.18,86.117,4.0574315]
[1773343160363,3.70456794,86.183,86.146,10.446]
[1773343161669,3.4470672,86.19,86.146,10.446]
[1773343163073,15.79176607,86.197,86.15,3.4470672]
[1773343163372,15.79176607,86.197,86.15,7.41303196]
[1773343163567,3.4470672,86.19,86.136,3.96596476]
[1773343164470,3.4470672,86.19,86.148,10.446]
[1773343164670,3.4470672,86.19,86.136,3.96596476]